bitfinex-derivatives/quotes_SOLF0:USTF0_20230102
["timestamp","ask_amount","ask_price","bid_price","bid_amount"]
[1672651885166,5.0,11.127,11.121,5.0]
[1672651886109,5.0,11.127,11.12,8.91]
[1672651886426,9.0,11.128,11.12,8.91]
[1672651907544,9.0,11.128,11.121,5.0]
[1672651907760,0.1192471,11.132,11.124,8.98]
[1672651907970,9.0,11.133,11.125,5.0]
[1672651909964,9.0,11.133,11.124,8.98]
[1672651910699,8.98,11.131,11.123,8.96]
[1672651910910,8.98,11.131,11.124,5.0]
[1672651912489,9.0,11.128,11.12,9.0]
[1672651912796,14.0,11.127,11.118,8.98]
[1672651913011,14.0,11.127,11.119,5.0]
[1672651913744,9.0,11.127,11.119,5.0]
[1672651914796,9.0,11.127,11.118,8.98]
[1672651928138,9.11967369,11.13,11.121,9.0]
[1672651928350,0.11967369,11.13,11.125,8.98]
[1672651928562,9.0,11.133,11.125,8.98]
[1672651928771,9.0,11.133,11.126,5.0]
[1672651929715,9.0,11.133,11.125,8.98]
[1672651956190,8.98,11.13,11.122,8.96]
[1672651956402,5.0,11.129,11.122,8.96]
[1672651956718,8.98,11.13,11.122,8.96]
[1672651958299,5.0,11.133,11.12,8.96]
[1672651958300,9.0,11.128,11.12,8.96]
[1672651958502,9.0,11.127,11.118,5.0]
[1672651958718,8.98,11.126,11.118,5.0]
[1672651959033,13.98,11.126,11.117,61.6536]
[1672651960297,8.98,11.126,11.117,61.6536]
[1672651964604,8.96,11.123,11.115,8.96]
[1672651964921,8.96,11.123,11.116,5.0]
[1672651965760,8.96,11.123,11.115,8.96]
[1672651967759,9.0,11.126,11.117,8.96]
[1672651968073,9.0,11.126,11.118,5.0]
[1672651969232,9.0,11.126,11.117,8.96]
[1672651976476,9.0,11.127,11.112,50.049]
[1672651976686,9.0,11.123,11.114,8.96]
[1672651977005,8.96,11.124,11.116,8.92]
[1672651977216,5.0,11.123,11.117,5.0]
[1672651977740,5.0,11.123,11.116,8.92]
[1672651978157,8.98,11.121,11.113,8.92]
[1672651978369,14.0,11.12,11.114,5.0]
[1672651978896,14.0,11.12,11.113,5.0]
[1672651979419,9.0,11.12,11.112,59.009]
[1672651980578,9.0,11.12,11.112,8.96]
[1672651980787,9.0,11.119,11.11,8.99]
[1672651980996,5.0,11.118,11.11,8.99]
[1672651982255,9.0,11.119,11.11,8.99]
[1672651982676,9.0,11.119,11.111,5.0]
[1672651985408,9.0,11.119,11.11,8.99]
[1672651994343,9.0,11.117,11.109,8.96]
[1672651994659,9.0,11.117,11.11,5.0]
[1672651996235,9.0,11.117,11.109,8.96]
[1672651998232,9.0,11.117,11.11,5.0]
[1672651998443,9.0,11.119,11.11,14.0]
[1672651998756,5.0,11.118,11.11,14.0]
[1672652000018,5.0,11.118,11.11,9.0]
[1672652000545,9.0,11.119,11.11,9.0]
[1672652005904,9.0,11.119,11.111,5.0]
[1672652007066,9.0,11.119,11.11,9.0]
[1672652009481,0.11925797,11.122,11.115,9.0]
[1672652009693,0.11925797,11.124,11.116,8.98]
[1672652009902,586.0,11.137,11.111,3.30386194]
[1672652009903,8.96,11.126,11.117,8.96]
[1672652010113,5.0,11.125,11.118,5.0]
[1672652010745,9.0,11.127,11.119,8.99]
[1672652014846,9.0,11.13,11.122,8.92]
[1672652015264,5.0,11.129,11.122,8.92]
[1672652015580,9.0,11.13,11.122,8.92]
[1672652019678,9.0,11.125,11.117,8.96]
[1672652019890,9.0,11.125,11.118,5.0]
[1672652020625,9.0,11.127,11.119,8.96]
[1672652020836,5.0,11.126,11.119,8.96]
[1672652021150,9.0,11.127,11.119,8.96]
[1672652026825,595.0,11.13,11.121,8.98]
[1672652027033,0.11892703,11.132,11.126,8.92]
[1672652027246,9.0,11.137,11.129,8.96]
[1672652027455,0.11892703,11.138,11.13,9.0]
[1672652029035,9.0,11.134,11.126,8.96]
[1672652029661,5.0,11.133,11.126,8.96]
[1672652030291,9.0,11.134,11.126,8.96]
[1672652032502,9.0,11.136,11.128,8.92]
[1672652032710,5.0,11.135,11.128,8.92]
[1672652034077,9.0,11.136,11.128,8.92]
[1672652034813,0.11970773,11.138,11.131,8.96]
[1672652037545,5.11970773,11.138,11.131,8.96]
[1672652037757,14.08970773,11.138,11.13,8.96]
[1672652038599,9.08970773,11.138,11.13,8.96]
[1672652043640,0.11970773,11.138,11.132,8.98]
[1672652043852,8.98,11.14,11.132,8.98]
[1672652044377,16.50455729,11.139,11.132,8.98]
[1672652047428,25.48455729,11.139,11.13,8.98]
[1672652047950,8.98,11.139,11.13,8.98]
[1672652049212,8.97,11.14,11.132,8.92]
[1672652049794,16.50421294,11.139,11.132,8.92]
[1672652049975,5.0,11.138,11.132,8.92]
[1672652050294,16.50421294,11.139,11.132,8.92]
[1672652050524,8.97,11.14,11.132,8.92]
[1672652050916,16.50406598,11.139,11.132,8.92]
[1672652051135,8.98,11.138,11.129,8.98]
[1672652051855,8.98,11.138,11.13,5.0]
[1672652053560,8.98,11.138,11.129,8.98]
[1672652055748,8.94,11.136,11.128,8.92]
[1672652067735,8.98,11.134,11.126,8.9]
[1672652067947,8.98,11.134,11.127,5.0]
[1672652069308,8.98,11.135,11.127,13.98]
[1672652070997,8.97,11.135,11.127,8.91]
[1672652071311,8.97,11.13,11.123,5.0]
[1672652071508,8.97,11.13,11.122,56.1251]
[1672652071936,8.97,11.13,11.123,5.0]
[1672652072573,8.92,11.131,11.123,13.99]
[1672652073205,5.0,11.13,11.123,13.99]
[1672652073409,5.0,11.13,11.123,8.99]
[1672652073621,8.92,11.131,11.123,8.99]
[1672652074256,8.99,11.133,11.124,13.99]
[1672652074575,5.0,11.132,11.125,5.0]
[1672652075196,5.0,11.132,11.124,8.99]
[1672652075933,8.99,11.131,11.123,8.99]
[1672652076139,5.0,11.13,11.123,8.99]
[1672652076878,8.99,11.131,11.123,8.99]
[1672652079610,8.99,11.13,11.121,8.99]
[1672652079822,5.0,11.129,11.122,5.0]
[1672652080239,5.0,11.129,11.119,5.0]
[1672652080240,8.99,11.128,11.12,8.99]
[1672652080496,5.0,11.127,11.12,8.99]
[1672652081713,8.99,11.128,11.12,8.99]
[1672652090835,5.0,11.132,11.118,49.9645]
[1672652090836,8.98,11.129,11.121,8.95]
[1672652091048,8.98,11.129,11.122,5.0]
[1672652092515,8.98,11.129,11.121,8.95]
[1672652100506,8.95,11.129,11.121,8.98]
[1672652100714,8.95,11.129,11.122,5.0]
[1672652102291,8.95,11.129,11.121,8.98]
[1672652103031,9.0,11.128,11.119,9.0]
[1672652103240,5.0,11.127,11.119,9.0]
[1672652103767,9.0,11.128,11.119,9.0]
[1672652107229,8.99,11.125,11.111,55.0]
[1672652107444,13.95,11.124,11.115,9.0]
[1672652107653,13.95,11.124,11.116,5.0]
[1672652107864,13.95,11.124,11.116,8.30321927]
[1672652108388,13.95,11.124,11.116,5.0]
[1672652108597,8.95,11.124,11.116,5.0]
[1672652109123,9.0,11.125,11.117,8.98]
[1672652109330,9.0,11.125,11.118,5.0]
[1672652109651,9.0,11.127,11.118,14.0]
[1672652110907,9.0,11.127,11.118,9.0]
[1672652111861,9.0,11.125,11.117,9.0]
[1672652112071,9.0,11.125,11.118,5.0]
[1672652113436,9.0,11.125,11.117,9.0]
[1672652116061,9.0,11.124,11.115,9.0]
[1672652116276,5.0,11.123,11.116,5.0]
[1672652116903,9.0,11.124,11.116,5.0]
[1672652117957,8.95,11.125,11.117,9.0]
[1672652118170,8.95,11.125,11.118,5.0]
[1672652119327,8.95,11.125,11.117,9.0]
[1672652122999,8.95,11.125,11.112,5.0]
[1672652123320,8.96,11.12,11.112,9.0]
[1672652123635,8.99,11.123,11.115,9.0]
[1672652123947,9.0,11.124,11.116,14.0]
[1672652124788,9.0,11.124,11.116,9.0]
[1672652125422,9.0,11.124,11.114,5.0]
[1672652125423,5.0,11.125,11.118,9.0]
[1672652128471,9.0,11.126,11.118,9.0]
[1672652128681,0.11995297,11.128,11.12,8.98]
[1672652128891,8.95,11.129,11.12,8.98]
[1672652142448,8.95,11.129,11.114,5.0]
[1672652142449,0.11918367,11.132,11.124,9.0]
[1672652142764,586.0,11.139,11.125,13.98]
[1672652142765,9.0,11.134,11.125,13.98]
[1672652144443,9.0,11.134,11.125,8.98]
[1672652148965,9.0,11.133,11.124,8.98]
[1672652149177,5.0,11.132,11.125,5.0]
[1672652150226,9.0,11.133,11.125,5.0]
[1672652150437,9.0,11.133,11.124,8.98]
[1672652155583,0.11947736,11.136,11.13,9.0]
[1672652155793,0.11947736,11.138,11.131,5.0]
[1672652156002,5.11947736,11.138,11.131,5.0]
[1672652156429,0.11947736,11.138,11.131,5.0]
[1672652157263,0.11947736,11.138,11.13,9.0]
[1672652157685,14.06947736,11.138,11.13,9.0]
[1672652157994,5.0,11.135,11.129,5.0]
[1672652158203,5.0,11.133,11.129,5.0]
[1672652158417,5.0,11.133,11.127,5.0]
[1672652158624,5.0,11.133,11.126,9.0]
[1672652159156,9.06947736,11.138,11.13,9.0]
[1672652159783,5.0,11.136,11.129,5.0]
[1672652159988,5.0,11.136,11.13,9.0]
[1672652160199,14.07947736,11.138,11.13,9.0]
[1672652161044,9.07947736,11.138,11.13,9.0]
[1672652162096,0.11947736,11.138,11.134,9.0]
[1672652162310,8.95,11.143,11.134,9.0]
[1672652163991,9.0,11.139,11.131,9.0]
[1672652164204,9.0,11.138,11.13,9.0]
[1672652164414,5.0,11.137,11.131,5.0]
[1672652164726,9.0,11.139,11.131,14.0]
[1672652165461,9.0,11.141,11.133,8.98]
[1672652165669,9.0,11.141,11.134,5.0]
[1672652166296,9.0,11.141,11.133,8.98]
[1672652167030,9.0,11.144,11.135,9.0]
[1672652167246,9.0,11.147,11.138,9.0]
[1672652167564,5.0,11.146,11.138,14.0]
[1672652167773,5.0,11.146,11.139,5.0]
[1672652167774,8.95,11.145,11.139,5.0]
[1672652168825,8.96,11.147,11.139,5.0]
[1672652170289,9.0,11.148,11.14,9.0]
[1672652170506,9.0,11.148,11.141,5.0]
[1672652172077,9.0,11.148,11.14,9.0]
[1672652172923,9.11909927,11.151,11.143,8.98]
[1672652173446,9.11909927,11.151,11.144,5.0]
[1672652173973,9.0,11.15,11.142,9.0]
[1672652174176,9.0,11.15,11.143,5.0]
[1672652175022,16.48906713,11.149,11.143,5.0]
[1672652176805,16.48906713,11.149,11.142,9.0]
[1672652177542,16.48906713,11.149,11.143,9.0]
[1672652178177,9.11909927,11.151,11.143,9.0]
[1672652179120,8.95,11.148,11.14,58.9526]
[1672652179534,5.0,11.147,11.14,58.9526]
[1672652179749,5.0,11.147,11.141,5.0]
[1672652179958,8.95,11.148,11.141,5.0]
[1672652180378,8.96,11.15,11.141,14.0]
[1672652180801,16.48842258,11.149,11.141,14.0]
[1672652181012,16.48842258,11.149,11.144,8.98]
[1672652181224,16.48842258,11.149,11.145,5.0]
[1672652181536,0.11909927,11.151,11.145,5.0]
[1672652181746,9.10909927,11.151,11.145,5.0]
[1672652181957,9.10909927,11.151,11.143,9.0]
[1672652182283,5.0,11.149,11.142,13.98]
[1672652182685,8.95,11.15,11.142,13.98]
[1672652183103,16.48834574,11.149,11.142,13.98]
[1672652183532,8.96,11.148,11.14,8.98]
[1672652183946,5.0,11.147,11.14,8.98]
[1672652184582,13.96,11.148,11.14,8.98]
[1672652184794,8.96,11.148,11.14,8.98]
[1672652185431,8.97,11.15,11.141,8.95]
[1672652185637,9.02909927,11.151,11.143,8.97]
[1672652185848,16.48871925,11.149,11.144,5.0]
[1672652186264,16.48871925,11.15,11.144,5.0]
[1672652187739,16.48871925,11.15,11.143,8.97]
[1672652189524,8.91,11.151,11.143,8.97]
[1672652192045,8.92,11.153,11.145,8.97]
[1672652192257,8.92,11.153,11.146,5.0]
[1672652193309,8.92,11.153,11.145,8.97]
[1672652195303,0.1191968,11.155,11.148,8.9]
[1672652195515,8.91,11.156,11.148,8.9]
[1672652195726,8.91,11.156,11.149,5.0]
[1672652196040,16.47851076,11.155,11.149,5.0]
[1672652196671,16.47851076,11.155,11.149,13.91]
[1672652196876,13.92,11.158,11.149,13.91]
[1672652197301,16.47671837,11.157,11.149,8.91]
[1672652197512,5.0,11.156,11.149,8.91]
[1672652198145,21.47671837,11.157,11.149,8.91]
[1672652198350,5.0,11.157,11.149,8.91]
[1672652198668,16.4773002,11.156,11.149,8.91]
[1672652198878,5.0,11.155,11.149,8.91]
[1672652199931,5.0,11.155,11.148,8.95]
[1672652200140,5.0,11.155,11.149,5.0]
[1672652200346,8.97,11.156,11.149,5.0]
[1672652200876,8.97,11.156,11.148,13.95]
[1672652202980,8.97,11.156,11.148,8.95]
[1672652203926,8.97,11.156,11.149,5.0]
[1672652204137,8.97,11.158,11.15,8.96]
[1672652204450,21.47676357,11.157,11.151,5.0]
[1672652204658,21.47676357,11.157,11.15,8.96]
[1672652205081,5.0,11.157,11.15,8.96]
[1672652205290,586.11993209,11.16,11.148,5.0]
[1672652205291,595.08993209,11.16,11.152,8.91]
[1672652205501,586.01565311,11.16,11.153,13.96]
[1672652205817,16.47445263,11.159,11.154,5.0]
[1672652206238,16.59438472,11.16,11.154,5.0]
[1672652206651,25.56438472,11.16,11.153,5.0]
[1672652207079,25.56438472,11.16,11.152,8.9]
[1672652207395,8.97,11.169,11.159,8.97]
[1672652207600,8.97,11.169,11.162,8.9]
[1672652208227,16.4612209,11.168,11.162,8.9]
[1672652208438,5.0,11.167,11.162,8.9]
[1672652208863,16.4612209,11.168,11.162,8.9]
[1672652209076,8.97,11.169,11.161,8.9]
[1672652209281,8.97,11.169,11.153,5.0]
[1672652209496,16.45979716,11.168,11.162,8.97]
[1672652210546,5.0,11.167,11.162,8.97]
[1672652210966,8.97,11.165,11.156,8.91]
[1672652211286,5.0,11.164,11.156,8.91]
[1672652211704,5.0,11.17,11.159,8.97]
[1672652211705,8.97,11.168,11.159,8.97]
[1672652211916,8.91,11.169,11.161,8.95]
[1672652212231,21.4610967,11.168,11.161,8.95]
[1672652212440,5.0,11.167,11.161,8.95]
[1672652212653,21.4610967,11.167,11.161,8.95]
[1672652213177,16.4610967,11.166,11.161,8.95]
[1672652213596,5.0,11.168,11.161,8.95]
[1672652214115,16.46103697,11.167,11.161,8.95]
[1672652214535,16.46103697,11.167,11.163,8.91]
[1672652214956,16.46103697,11.167,11.157,5.0]
[1672652214957,8.92,11.175,11.166,8.9]
[1672652215172,5.0,11.174,11.168,8.95]
[1672652215381,21.45215067,11.174,11.167,13.97]
[1672652215591,30.37215067,11.174,11.167,5.0]
[1672652215803,8.97,11.171,11.163,13.96]
[1672652216013,5.0,11.17,11.163,13.96]
[1672652216222,5.0,11.17,11.163,8.96]
[1672652216429,25.42215067,11.169,11.161,8.9]
[1672652216957,5.0,11.172,11.161,8.9]
[1672652216958,16.45215067,11.168,11.164,8.97]
[1672652217170,16.45215067,11.168,11.165,13.96]
[1672652217378,9.02977611,11.174,11.165,13.96]
[1672652217793,0.11977611,11.174,11.167,8.96]
[1672652218220,16.57064565,11.174,11.167,8.96]
[1672652219274,0.11977611,11.174,11.167,8.96]
[1672652221894,0.11977611,11.174,11.17,8.9]
[1672652222108,5.0,11.177,11.17,8.9]
[1672652222525,16.45015006,11.176,11.17,8.9]
[1672652222738,5.0,11.175,11.17,8.9]
[1672652222950,5.0,11.175,11.165,5.0]
[1672652222951,8.97,11.173,11.165,8.96]
[1672652223160,8.97,11.173,11.166,5.0]
[1672652223475,3.92,11.175,11.167,8.96]
[1672652223680,3.92,11.175,11.168,5.0]
[1672652224628,8.97,11.177,11.169,8.91]
[1672652224943,16.45072105,11.174,11.17,5.0]
[1672652225149,16.45072105,11.176,11.17,5.0]
[1672652225890,16.45072105,11.176,11.169,8.91]
[1672652226100,8.97,11.175,11.167,8.95]
[1672652226305,5.0,11.174,11.168,5.0]
[1672652226833,5.0,11.174,11.167,8.95]
[1672652227045,8.92,11.176,11.168,13.9]
[1672652227255,5.0,11.181,11.17,8.95]
[1672652227256,8.97,11.178,11.17,8.95]
[1672652227466,8.97,11.178,11.171,5.0]
[1672652227675,16.45079019,11.177,11.171,5.0]
[1672652227886,5.0,11.176,11.17,8.95]
[1672652228624,16.45079019,11.175,11.17,8.95]
[1672652228938,16.45079019,11.176,11.17,8.95]
[1672652229146,16.45079019,11.176,11.168,5.0]
[1672652229147,0.00079019,11.176,11.171,8.9]
[1672652229358,8.92,11.182,11.174,8.9]
[1672652229568,13.92,11.181,11.173,8.91]
[1672652229779,13.92,11.181,11.174,5.0]
[1672652229989,16.43736388,11.18,11.174,5.0]
[1672652230411,2684.61618688,11.257,11.179,76.95]
[1672652230625,50.0,11.245,11.218,8.97]
[1672652230937,50.0,11.245,11.219,0.11920768]
[1672652231246,50.0,11.255,11.229,0.11920768]
[1672652231455,50.0,11.255,11.221,35.88]
[1672652231456,8.91,11.242,11.234,0.11920768]
[1672652231666,328.41,11.235,11.211,9.03]
[1672652231881,17.93899377,11.23,11.212,5.0]
[1672652232090,319.5,11.226,11.192,115.5953]
[1672652232403,66.82,11.225,11.222,5.0]
[1672652232617,269.5,11.222,11.2,8.97]
[1672652232932,8.97,11.207,11.197,8.96]
[1672652233351,8.91,11.199,11.19,8.96]
[1672652233562,8.92,11.201,11.192,8.9]
[1672652233985,8.92,11.201,11.193,5.0]
[1672652234190,8.92,11.201,11.198,5.0]
[1672652234407,8.92,11.201,11.192,8.9]
[1672652234825,5.0,11.2,11.192,8.9]
[1672652235354,13.97,11.2,11.191,13.91]
[1672652235981,13.97,11.2,11.191,8.91]
[1672652236191,8.97,11.198,11.19,8.95]
[1672652236508,8.97,11.198,11.191,5.0]
[1672652237455,5.0,11.203,11.194,8.97]
[1672652237456,8.92,11.203,11.194,8.97]
[1672652237666,1996.63973302,11.282,11.191,55.0]
[1672652237667,8.97,11.207,11.198,8.95]
[1672652237874,8.97,11.207,11.199,5.0]
[1672652238084,8.92,11.205,11.199,5.0]
[1672652238299,8.92,11.204,11.195,13.91]
[1672652238511,5.0,11.203,11.195,13.91]
[1672652238925,26.87,11.201,11.193,5.0]
[1672652239238,8.97,11.196,11.187,8.91]
[1672652239448,5.0,11.195,11.187,8.91]
[1672652239664,5.0,11.195,11.188,13.91]
[1672652240084,8.91,11.197,11.188,13.91]
[1672652241451,8.91,11.197,11.188,8.91]
[1672652241661,8.91,11.195,11.186,13.97]
[1672652242921,8.91,11.195,11.186,8.97]
[1672652243548,5.11962041,11.199,11.189,5.0]
[1672652243549,8.97,11.197,11.189,5.0]
[1672652243763,5.0,11.196,11.189,5.0]
[1672652244184,8.92,11.195,11.187,8.91]
[1672652244392,8.97,11.188,11.18,8.95]
[1672652244603,5.0,11.187,11.181,5.0]
[1672652244815,8.97,11.189,11.181,13.91]
[1672652245019,8.97,11.189,11.181,5.0]
[1672652245234,9.08962041,11.198,11.188,8.97]
[1672652245441,9.08962041,11.198,11.19,5.0]
[1672652245967,8.92,11.196,11.186,8.9]
[1672652246186,8.92,11.189,11.181,5.0]
[1672652246602,5.0,11.188,11.181,5.0]
[1672652247333,8.97,11.19,11.182,8.95]
[1672652247543,8.97,11.192,11.183,8.97]
[1672652247749,8.97,11.192,11.184,5.0]
[1672652248385,8.97,11.192,11.181,5.0]
[1672652248598,8.97,11.19,11.182,8.95]
[1672652248807,5.0,11.189,11.182,8.95]
[1672652249014,5.0,11.189,11.183,5.0]
[1672652249334,8.91,11.192,11.183,13.96]
[1672652249651,5.0,11.191,11.183,13.96]
[1672652249860,9.02950494,11.196,11.187,8.97]
[1672652250384,9.02950494,11.196,11.188,5.0]
[1672652250589,8.97,11.195,11.188,5.0]
[1672652250908,8.97,11.193,11.185,5.0]
[1672652251328,8.97,11.193,11.184,58.2252]
[1672652252374,8.97,11.19,11.182,8.91]
[1672652252586,8.92,11.189,11.181,5.0]
[1672652252799,5.0,11.188,11.181,5.0]
[1672652253217,8.92,11.189,11.181,5.0]
[1672652253218,0.11950494,11.193,11.187,8.95]
[1672652253535,8.97,11.19,11.182,5.0]
[1672652253743,5.0,11.189,11.182,5.0]
[1672652254166,8.97,11.19,11.182,5.0]
[1672652254690,8.97,11.19,11.181,5.0]
[1672652254897,8.97,11.188,11.181,5.0]
[1672652255104,8.92,11.187,11.178,8.9]
[1672652255425,8.92,11.185,11.178,5.0]
[1672652256056,8.91,11.189,11.18,8.9]
[1672652256478,8.91,11.189,11.181,5.0]
[1672652257943,8.91,11.189,11.18,8.9]
[1672652258581,8.92,11.187,11.179,8.97]
[1672652259104,5.0,11.186,11.18,5.0]
[1672652259315,8.97,11.19,11.182,8.95]
[1672652259736,8.97,11.19,11.183,5.0]
[1672652261309,8.97,11.19,11.182,8.95]
[1672652261518,8.97,11.189,11.18,13.9]
[1672652262469,8.96950494,11.191,11.18,5.0]
[1672652262669,8.96950494,11.191,11.178,13.9]
[1672652263095,8.85,11.191,11.178,13.9]
[1672652264041,0.11955261,11.192,11.181,8.9]
[1672652264251,0.04216704,11.192,11.182,5.0]
[1672652264882,8.94216704,11.192,11.179,8.88]
[1672652265092,5.0,11.191,11.18,5.0]
[1672652265507,5.0,11.191,11.179,8.88]
[1672652266250,5.0,11.191,11.18,5.0]
[1672652267404,5.0,11.191,11.179,8.88]
[1672652272028,8.9,11.189,11.176,58.5777]
[1672652272240,8.9,11.184,11.173,8.9]
[1672652272449,8.81,11.183,11.172,5.0]
[1672652272660,5.0,11.182,11.172,5.0]
[1672652274553,5.0,11.182,11.173,8.85]
[1672652274763,5.0,11.186,11.172,5.0]
[1672652274764,8.87,11.187,11.177,5.0]
[1672652275397,5.0,11.186,11.174,3.28490479]
[1672652275607,5.0,11.186,11.173,8.9]
[1672652276020,5.0,11.186,11.175,8.9]
[1672652276237,8.87,11.187,11.176,5.0]
[1672652276762,5.0,11.189,11.178,8.88]
[1672652276966,13.94216704,11.19,11.18,8.9]
[1672652276967,0.04216704,11.19,11.18,8.9]
[1672652277176,50.0,11.196,11.185,8.88]
[1672652277490,21.42249599,11.195,11.185,8.88]
[1672652277698,30.25249599,11.195,11.182,8.9]
[1672652278119,5.0,11.191,11.181,5.0]
[1672652278959,5.0,11.191,11.18,8.87]
[1672652279172,5.0,11.184,11.173,8.9]
[1672652279591,5.0,11.184,11.174,5.0]
[1672652279806,5.0,11.184,11.173,8.9]
[1672652280863,8.87,11.188,11.178,8.9]
[1672652281075,5.11981126,11.191,11.179,5.0]
[1672652281601,8.87,11.189,11.176,8.87]
[1672652281806,5.0,11.188,11.176,8.87]
[1672652282012,5.0,11.188,11.177,5.0]
[1672652282230,50.0,11.186,11.172,5.0]
[1672652282441,5.0,11.184,11.172,5.0]
[1672652283072,8.85,11.182,11.171,57.5383]
[1672652283491,5.0,11.181,11.171,57.5383]
[1672652284227,5.0,11.181,11.171,5.0]
[1672652284544,8.91,11.18,11.168,8.91]
[1672652284753,5.0,11.179,11.168,8.91]
[1672652285169,8.85,11.178,11.167,50.3167]
[1672652285491,5.0,11.177,11.167,50.3167]
[1672652286012,8.9,11.175,11.163,8.9]
[1672652286217,8.9,11.175,11.164,5.0]
[1672652286218,5.0,11.174,11.164,5.0]
[1672652286645,5.0,11.174,11.165,3.28713072]
[1672652287588,5.0,11.174,11.163,8.9]
[1672652287589,5.0,11.174,11.164,3.28713072]
[1672652287800,8.85,11.172,11.165,5.0]
[1672652288010,5.0,11.174,11.156,8.83]
[1672652288011,8.9,11.168,11.156,8.83]
[1672652288320,8.91,11.169,11.158,8.83]
[1672652288529,0.11981126,11.17,11.16,8.91]
[1672652290320,0.11981126,11.17,11.161,8.91]
[1672652291049,0.11981126,11.17,11.162,3.28911537]
[1672652291265,0.11981126,11.17,11.162,3.10990548]
[1672652294730,13.85,11.171,11.162,3.10990548]
[1672652294941,0.11931592,11.174,11.167,8.9]
[1672652295149,0.11931592,11.177,11.167,8.9]
[1672652295361,8.99931592,11.177,11.166,8.91]
[1672652295566,8.91,11.176,11.168,3.10990548]
[1672652295775,8.98,11.202,11.171,50.0]
[1672652295986,45.03001592,11.197,11.181,4.96998408]
[1672652296196,8.85,11.195,11.183,8.89]
[1672652296411,5.0,11.194,11.184,5.0]
[1672652296620,21.42736081,11.194,11.184,5.0]
[1672652297042,16.42736081,11.193,11.184,5.0]
[1672652298306,25.33736081,11.193,11.182,5.0]
[1672652299142,16.42736081,11.192,11.182,5.0]
[1672652299350,5.0,11.191,11.181,4.96998408]
[1672652299565,5.0,11.191,11.182,5.0]
[1672652299988,5.0,11.191,11.181,9.96998408]
[1672652300930,8.91,11.189,11.181,4.96998408]